[Event "*** Titled Tuesday Blitz"]
[Site "Chess.com"]
[Date "2019.05.07"]
[Round "2"]
[White "plouarzel"]
[Black "jncool68"]
[Result "1-0"]
[WhiteElo "2589"]
[BlackElo "2599"]
[TimeControl "180+2"]
[EndTime "13:21:45 PDT"]
[Termination "plouarzel won by resignation"]

1. e4 {[%clk 0:03:01.9]} 1... e5 {[%clk 0:03:00.5]} 2. Nf3 {[%clk 0:03:02.7]}
2... Nc6 {[%clk 0:03:01.2]} 3. d4 {[%clk 0:03:03.8]} 3... exd4 {[%clk
0:02:51.8]} 4. Nxd4 {[%clk 0:03:05.7]} 4... Bb4+ {[%clk 0:02:52.7]} 5. c3 {[%clk
0:03:06]} 5... Bc5 {[%clk 0:02:54]} 6. Be3 {[%clk 0:03:07.4]} 6... Bb6 {[%clk
0:02:54.9]} 7. Nf5 {[%clk 0:03:08.9]} 7... g6 {[%clk 0:02:54.7]} 8. Bxb6 {[%clk
0:03:09.8]} 8... axb6 {[%clk 0:02:56.2]} 9. Ne3 {[%clk 0:03:11.7]} 9... Nf6
{[%clk 0:02:57.1]} 10. f3 {[%clk 0:03:12.5]} 10... O-O {[%clk 0:02:57.3]} 11. c4
{[%clk 0:03:14.1]} 11... Nh5 {[%clk 0:02:57.1]} 12. Qd2 {[%clk 0:03:13.7]} 12...
Qh4+ {[%clk 0:02:57.2]} 13. Qf2 {[%clk 0:03:14.1]} 13... Qxf2+ {[%clk
0:02:56.7]} 14. Kxf2 {[%clk 0:03:16]} 14... d6 {[%clk 0:02:58.1]} 15. Nc3 {[%clk
0:03:17.5]} 15... Be6 {[%clk 0:02:58.4]} 16. Ncd5 {[%clk 0:03:17]} 16... Rfc8
{[%clk 0:02:56.7]} 17. g4 {[%clk 0:03:15.1]} 17... Ng7 {[%clk 0:02:55.7]} 18. h4
{[%clk 0:03:01.9]} 18... Bxd5 {[%clk 0:02:56.1]} 19. Nxd5 {[%clk 0:02:59.7]}
19... Ne6 {[%clk 0:02:56.4]} 20. h5 {[%clk 0:02:59.2]} 20... g5 {[%clk
0:02:52.1]} 21. h6 {[%clk 0:02:56.6]} 21... Ne5 {[%clk 0:02:53]} 22. Ne7+ {[%clk
0:02:56.2]} 22... Kf8 {[%clk 0:02:51.5]} 23. Nxc8 {[%clk 0:02:58.1]} 23... Rxc8
{[%clk 0:02:52.4]} 24. Be2 {[%clk 0:02:54.9]} 24... Nf4 {[%clk 0:02:53.3]} 25.
b3 {[%clk 0:02:53.9]} 25... f6 {[%clk 0:02:52.2]} 26. a4 {[%clk 0:02:43.9]}
26... Nc6 {[%clk 0:02:48.2]} 27. Rhb1 {[%clk 0:02:39.6]} 27... Ra8 {[%clk
0:02:21.4]} 28. b4 {[%clk 0:02:38.7]} 28... Nd4 {[%clk 0:02:20.4]} 29. Bd1
{[%clk 0:02:39.4]} 29... c6 {[%clk 0:02:13.1]} 30. Ke3 {[%clk 0:02:40.3]} 30...
Nfe6 {[%clk 0:01:59.8]} 31. a5 {[%clk 0:02:39.9]} 31... b5 {[%clk 0:02:00.4]}
32. cxb5 {[%clk 0:02:36.5]} 32... Nxb5 {[%clk 0:01:59.2]} 33. Bb3 {[%clk
0:02:27]} 33... Ned4 {[%clk 0:01:55]} 34. Ba4 {[%clk 0:02:14.6]} 34... Ke7
{[%clk 0:01:51.7]} 35. Rd1 {[%clk 0:02:06.7]} 35... Ne6 {[%clk 0:01:28.3]} 36.
Bxb5 {[%clk 0:02:06.7]} 36... cxb5 {[%clk 0:01:29.5]} 37. Rac1 {[%clk
0:02:06.6]} 37... Kd7 {[%clk 0:01:29.4]} 38. Rd5 {[%clk 0:02:07.1]} 38... Nc7
{[%clk 0:01:29.9]} 39. Rd3 {[%clk 0:02:03.9]} 39... Ra6 {[%clk 0:01:29.3]} 40.
Rdc3 {[%clk 0:02:00.3]} 40... Ne6 {[%clk 0:01:22.6]} 41. Rc8 {[%clk 0:01:59.3]}
41... b6 {[%clk 0:01:20.3]} 42. Rh8 {[%clk 0:01:56.2]} 42... bxa5 {[%clk
0:01:21.4]} 43. Rxh7+ {[%clk 0:01:57.6]} 43... Kd8 {[%clk 0:01:22.3]} 44. Rb7
{[%clk 0:01:56.4]} 1-0

[Event "*** Titled Tuesday Blitz"]
[Site "Chess.com"]
[Date "2019.05.07"]
[Round "2"]
[White "fidezivkovic"]
[Black "RATNAKARAN"]
[Result "1-0"]
[WhiteElo "2294"]
[BlackElo "2403"]
[TimeControl "180+2"]
[EndTime "13:21:46 PDT"]
[Termination "fidezivkovic won by resignation"]

1. f4 {[%clk 0:03:01.9]} 1... Nf6 {[%clk 0:02:58.8]} 2. b3 {[%clk 0:03:01.8]}
2... d5 {[%clk 0:02:58.8]} 3. Bb2 {[%clk 0:03:01.9]} 3... c6 {[%clk 0:02:59.8]}
4. Nf3 {[%clk 0:02:59.8]} 4... Bf5 {[%clk 0:03:00.5]} 5. e3 {[%clk 0:02:58.2]}
5... e6 {[%clk 0:02:58.5]} 6. h3 {[%clk 0:02:58.1]} 6... Nbd7 {[%clk 0:02:56.8]}
7. g4 {[%clk 0:02:57.8]} 7... Bg6 {[%clk 0:02:56.5]} 8. d3 {[%clk 0:02:51.6]}
8... Qb6 {[%clk 0:02:55.3]} 9. Qe2 {[%clk 0:02:47.3]} 9... O-O-O {[%clk
0:02:55.3]} 10. Nbd2 {[%clk 0:02:42.7]} 10... h5 {[%clk 0:02:48.5]} 11. g5
{[%clk 0:02:38.8]} 11... Ne8 {[%clk 0:02:47.3]} 12. Nh4 {[%clk 0:02:31.1]} 12...
Bc5 {[%clk 0:02:26.6]} 13. d4 {[%clk 0:02:24.7]} 13... Be7 {[%clk 0:02:22.8]}
14. Nxg6 {[%clk 0:02:24.3]} 14... fxg6 {[%clk 0:02:24]} 15. Qd3 {[%clk
0:02:18.8]} 15... Nf8 {[%clk 0:02:23.5]} 16. Nf3 {[%clk 0:02:17.2]} 16... Nd6
{[%clk 0:02:07.2]} 17. Ne5 {[%clk 0:02:17.2]} 17... Ne4 {[%clk 0:01:55.8]} 18.
Bg2 {[%clk 0:02:17.1]} 18... Ng3 {[%clk 0:01:51.1]} 19. Rg1 {[%clk 0:02:14.5]}
19... Nf5 {[%clk 0:01:48.9]} 20. O-O-O {[%clk 0:02:14.2]} 20... Rg8 {[%clk
0:01:41.3]} 21. Kb1 {[%clk 0:02:13.8]} 21... c5 {[%clk 0:01:38]} 22. c4 {[%clk
0:02:11.6]} 22... Kb8 {[%clk 0:01:30.6]} 23. cxd5 {[%clk 0:02:09.4]} 23... exd5
{[%clk 0:01:28.9]} 24. dxc5 {[%clk 0:02:00.5]} 24... Bxc5 {[%clk 0:01:27.6]} 25.
Bxd5 {[%clk 0:01:55.7]} 25... Nxe3 {[%clk 0:01:22.7]} 26. Nc4 {[%clk 0:01:46.3]}
26... Rxd5 {[%clk 0:01:05.6]} 27. Nxb6 {[%clk 0:01:42.5]} 27... Rxd3 {[%clk
0:01:01.3]} 28. Rxd3 {[%clk 0:01:42.3]} 28... Bd6 {[%clk 0:01:02]} 29. Rxd6
{[%clk 0:01:31.6]} 29... axb6 {[%clk 0:01:01.9]} 30. Re1 {[%clk 0:01:27]} 30...
Nf5 {[%clk 0:00:59.4]} 31. Rd8+ {[%clk 0:01:26.7]} 1-0

[Event "*** Titled Tuesday Blitz"]
[Site "Chess.com"]
[Date "2019.05.07"]
[Round "2"]
[White "PotapovaM"]
[Black "FedaMaster"]
[Result "0-1"]
[WhiteElo "2451"]
[BlackElo "2307"]
[TimeControl "180+2"]
[EndTime "13:22:02 PDT"]
[Termination "FedaMaster won by resignation"]

1. d4 {[%clk 0:03:01.9]} 1... Nf6 {[%clk 0:03:00.8]} 2. c4 {[%clk 0:02:58.3]}
2... g6 {[%clk 0:02:59]} 3. Nc3 {[%clk 0:02:55.5]} 3... d5 {[%clk 0:03:00.3]} 4.
cxd5 {[%clk 0:02:54.8]} 4... Nxd5 {[%clk 0:03:02.2]} 5. e4 {[%clk 0:02:55.4]}
5... Nxc3 {[%clk 0:03:03.8]} 6. bxc3 {[%clk 0:02:56.6]} 6... Bg7 {[%clk
0:03:05.5]} 7. Nf3 {[%clk 0:02:54.7]} 7... c5 {[%clk 0:03:06.6]} 8. Be3 {[%clk
0:02:53.7]} 8... O-O {[%clk 0:03:05.8]} 9. Be2 {[%clk 0:02:53.1]} 9... b6 {[%clk
0:03:01.9]} 10. Qd2 {[%clk 0:02:37.8]} 10... Bb7 {[%clk 0:03:00.5]} 11. e5
{[%clk 0:02:16.8]} 11... cxd4 {[%clk 0:02:59.6]} 12. cxd4 {[%clk 0:02:17]} 12...
Nc6 {[%clk 0:02:58]} 13. h4 {[%clk 0:02:17.7]} 13... Qd5 {[%clk 0:02:50.5]} 14.
Kf1 {[%clk 0:02:00]} 14... Qa5 {[%clk 0:02:49.5]} 15. Qd1 {[%clk 0:01:52.5]}
15... Rfd8 {[%clk 0:02:46.2]} 16. e6 {[%clk 0:01:46.4]} 16... f5 {[%clk
0:02:35.6]} 17. g3 {[%clk 0:01:25.1]} 17... Nxd4 {[%clk 0:02:22.9]} 18. Nxd4
{[%clk 0:00:52.9]} 18... Bxh1 {[%clk 0:02:20.1]} 19. Kg1 {[%clk 0:00:40.9]}
19... Qd5 {[%clk 0:02:06.7]} 20. Bf1 {[%clk 0:00:28.3]} 20... Bxd4 {[%clk
0:02:04]} 21. Bxd4 {[%clk 0:00:28.4]} 21... Qxd4 {[%clk 0:02:01.5]} 22. Qxd4
{[%clk 0:00:26.6]} 22... Rxd4 {[%clk 0:02:03.4]} 23. Kxh1 {[%clk 0:00:27.5]}
23... Rc8 {[%clk 0:02:02.4]} 24. h5 {[%clk 0:00:08.9]} 24... Kg7 {[%clk
0:02:01.1]} 25. Kg2 {[%clk 0:00:08.7]} 25... Rc2 {[%clk 0:02:00.6]} 26. Bb5
{[%clk 0:00:07.2]} 26... Rdd2 {[%clk 0:01:59.9]} 27. Rf1 {[%clk 0:00:07.8]}
27... Rxa2 {[%clk 0:02:01]} 28. Bd7 {[%clk 0:00:08.7]} 28... gxh5 {[%clk
0:02:01.1]} 29. Kf3 {[%clk 0:00:08.5]} 29... a5 {[%clk 0:01:59.4]} 30. Be8
{[%clk 0:00:09.1]} 30... Ra3+ {[%clk 0:01:57.1]} 31. Kf4 {[%clk 0:00:10.3]}
31... Kf6 {[%clk 0:01:56.9]} 32. Bf7 {[%clk 0:00:10.5]} 0-1

[Event "*** Titled Tuesday Blitz"]
[Site "Chess.com"]
[Date "2019.05.07"]
[Round "2"]
[White "Chessialist"]
[Black "MITerryble"]
[Result "0-1"]
[WhiteElo "2561"]
[BlackElo "2818"]
[TimeControl "180+2"]
[EndTime "13:22:18 PDT"]
[Termination "MITerryble won by resignation"]

1. e4 {[%clk 0:03:01.9]} 1... e6 {[%clk 0:03:01]} 2. Qe2 {[%clk 0:03:02.3]} 2...
c5 {[%clk 0:03:01.5]} 3. d3 {[%clk 0:03:03.2]} 3... Nc6 {[%clk 0:03:02.7]} 4.
Nf3 {[%clk 0:03:04.4]} 4... g6 {[%clk 0:03:03.8]} 5. g3 {[%clk 0:03:05.7]} 5...
Bg7 {[%clk 0:03:05.1]} 6. Bg2 {[%clk 0:03:07.4]} 6... Nge7 {[%clk 0:03:06.2]} 7.
O-O {[%clk 0:03:09.2]} 7... O-O {[%clk 0:03:07.3]} 8. Nbd2 {[%clk 0:03:10.8]}
8... d6 {[%clk 0:03:07.4]} 9. Re1 {[%clk 0:03:11.8]} 9... Rb8 {[%clk 0:03:08.3]}
10. a4 {[%clk 0:03:12.6]} 10... a6 {[%clk 0:03:09.1]} 11. h4 {[%clk 0:03:12.4]}
11... h6 {[%clk 0:03:08.4]} 12. Nf1 {[%clk 0:03:13.2]} 12... b5 {[%clk
0:03:08.7]} 13. axb5 {[%clk 0:03:13.9]} 13... axb5 {[%clk 0:03:10.6]} 14. N1h2
{[%clk 0:03:15.5]} 14... e5 {[%clk 0:03:11.9]} 15. c3 {[%clk 0:03:11.9]} 15...
b4 {[%clk 0:03:12.4]} 16. Be3 {[%clk 0:03:08.1]} 16... Be6 {[%clk 0:03:06.1]}
17. h5 {[%clk 0:03:08.5]} 17... g5 {[%clk 0:03:06.9]} 18. Qf1 {[%clk 0:03:08.1]}
18... Qd7 {[%clk 0:03:05.4]} 19. Nd2 {[%clk 0:03:06.2]} 19... bxc3 {[%clk
0:03:02.2]} 20. bxc3 {[%clk 0:03:06.9]} 20... f5 {[%clk 0:03:04.1]} 21. exf5
{[%clk 0:03:06.1]} 21... Nxf5 {[%clk 0:03:06]} 22. Ng4 {[%clk 0:03:01.6]} 22...
Nxg3 {[%clk 0:03:03]} 23. Bxc6 {[%clk 0:02:54]} 23... Qxc6 {[%clk 0:03:00.3]}
24. Qg2 {[%clk 0:02:53.4]} 24... Qxg2+ {[%clk 0:02:53.8]} 25. Kxg2 {[%clk
0:02:53.9]} 25... Nxh5 {[%clk 0:02:44.7]} 26. f3 {[%clk 0:02:50.4]} 26... Rb2
{[%clk 0:02:29.1]} 27. Nf2 {[%clk 0:02:48.3]} 27... Bd5 {[%clk 0:02:16]} 28. c4
{[%clk 0:02:38.7]} 28... Bxf3+ {[%clk 0:01:43.4]} 29. Nxf3 {[%clk 0:02:38.4]}
29... g4 {[%clk 0:01:44.7]} 30. Nd2 {[%clk 0:02:23.5]} 30... Nf4+ {[%clk
0:01:31.2]} 31. Bxf4 {[%clk 0:02:19.7]} 31... exf4 {[%clk 0:01:27.8]} 32. Nde4
{[%clk 0:02:18.4]} 32... g3 {[%clk 0:01:26.3]} 33. Rab1 {[%clk 0:02:18.6]} 33...
gxf2 {[%clk 0:01:21.8]} 34. Rf1 {[%clk 0:02:15.4]} 34... f3+ {[%clk 0:01:18]}
35. Kh3 {[%clk 0:02:15.1]} 35... Rxb1 {[%clk 0:01:15.7]} 36. Rxb1 {[%clk
0:02:17]} 36... Bd4 {[%clk 0:01:15.8]} 37. Kg4 {[%clk 0:02:09.8]} 37... Kh7
{[%clk 0:01:13.3]} 38. Nxd6 {[%clk 0:02:04.6]} 38... Rg8+ {[%clk 0:01:11.7]} 39.
Kxf3 {[%clk 0:01:58.7]} 39... Rg1 {[%clk 0:01:12.4]} 0-1

[Event "*** Titled Tuesday Blitz"]
[Site "Chess.com"]
[Date "2019.05.07"]
[Round "2"]
[White "Gergo85"]
[Black "hansen"]
[Result "1-0"]
[WhiteElo "2636"]
[BlackElo "2766"]
[TimeControl "180+2"]
[EndTime "13:22:20 PDT"]
[Termination "Gergo85 won on time"]

1. e4 {[%clk 0:03:01.9]} 1... e5 {[%clk 0:02:56.9]} 2. Nc3 {[%clk 0:03:02.6]}
2... Nf6 {[%clk 0:02:51.6]} 3. g3 {[%clk 0:03:03.9]} 3... d5 {[%clk 0:02:51.1]}
4. exd5 {[%clk 0:03:04.3]} 4... Nxd5 {[%clk 0:02:52.3]} 5. Bg2 {[%clk 0:03:06]}
5... Nxc3 {[%clk 0:02:19.5]} 6. bxc3 {[%clk 0:03:07.9]} 6... Nc6 {[%clk
0:02:20.3]} 7. Nf3 {[%clk 0:03:09.1]} 7... Bd6 {[%clk 0:02:20.3]} 8. O-O {[%clk
0:03:09.7]} 8... O-O {[%clk 0:02:18.7]} 9. Qe2 {[%clk 0:03:00.5]} 9... Re8
{[%clk 0:02:14.8]} 10. Rb1 {[%clk 0:02:44.7]} 10... e4 {[%clk 0:02:16.6]} 11.
Nd4 {[%clk 0:02:45.7]} 11... Nxd4 {[%clk 0:01:42.5]} 12. cxd4 {[%clk 0:02:47.6]}
12... Qf6 {[%clk 0:01:43.7]} 13. Bxe4 {[%clk 0:02:15.7]} 13... Bf5 {[%clk
0:01:43.1]} 14. d3 {[%clk 0:02:16.2]} 14... Bxe4 {[%clk 0:01:44.6]} 15. dxe4
{[%clk 0:02:17.2]} 15... Qxd4 {[%clk 0:01:44.3]} 16. Rxb7 {[%clk 0:02:06.6]}
16... Rxe4 {[%clk 0:01:40.9]} 17. Be3 {[%clk 0:01:59.9]} 17... Qd5 {[%clk
0:01:38.4]} 18. Rfb1 {[%clk 0:02:00.8]} 18... h5 {[%clk 0:01:35.8]} 19. Rb8+
{[%clk 0:01:39.1]} 19... Re8 {[%clk 0:01:31.2]} 20. Rxa8 {[%clk 0:01:19.5]}
20... Rxa8 {[%clk 0:00:58.7]} 21. Qa6 {[%clk 0:01:20.2]} 21... Re8 {[%clk
0:00:40.9]} 22. Qxa7 {[%clk 0:01:07.1]} 1-0

[Event "*** Titled Tuesday Blitz"]
[Site "Chess.com"]
[Date "2019.05.07"]
[Round "2"]
[White "Vice64"]
[Black "Rap_woyska"]
[Result "1-0"]
[WhiteElo "2536"]
[BlackElo "2410"]
[TimeControl "180+2"]
[EndTime "13:22:23 PDT"]
[Termination "Vice64 won by resignation"]

1. e4 {[%clk 0:03:01.9]} 1... c5 {[%clk 0:03:00.2]} 2. Nf3 {[%clk 0:03:02.6]}
2... e6 {[%clk 0:03:01.4]} 3. d4 {[%clk 0:03:03.5]} 3... cxd4 {[%clk 0:03:03.3]}
4. Nxd4 {[%clk 0:03:04.9]} 4... Nc6 {[%clk 0:03:04.9]} 5. Nc3 {[%clk 0:03:05.2]}
5... Qc7 {[%clk 0:03:06.2]} 6. Be3 {[%clk 0:03:05.9]} 6... a6 {[%clk 0:03:07.6]}
7. Be2 {[%clk 0:03:07.3]} 7... Nf6 {[%clk 0:03:08.7]} 8. O-O {[%clk 0:03:07.3]}
8... Be7 {[%clk 0:03:10.3]} 9. f4 {[%clk 0:03:07.5]} 9... d6 {[%clk 0:03:09.6]}
10. Kh1 {[%clk 0:03:08.2]} 10... O-O {[%clk 0:03:09.3]} 11. Qe1 {[%clk
0:03:09.5]} 11... Nxd4 {[%clk 0:03:07.1]} 12. Bxd4 {[%clk 0:03:11.4]} 12... b5
{[%clk 0:03:08.2]} 13. Qg3 {[%clk 0:03:12.6]} 13... Bb7 {[%clk 0:03:06.7]} 14.
a3 {[%clk 0:03:13.7]} 14... Rad8 {[%clk 0:03:04.7]} 15. Rae1 {[%clk 0:03:13.5]}
15... Bc6 {[%clk 0:02:59.7]} 16. Bf3 {[%clk 0:03:10]} 16... Qd7 {[%clk
0:02:31.5]} 17. Nd1 {[%clk 0:03:06.8]} 17... a5 {[%clk 0:02:31.3]} 18. Ne3
{[%clk 0:03:03.7]} 18... g6 {[%clk 0:02:31.5]} 19. c3 {[%clk 0:02:54.2]} 19...
Qb7 {[%clk 0:02:31.2]} 20. Ng4 {[%clk 0:02:52]} 20... Nxg4 {[%clk 0:02:25.9]}
21. Qxg4 {[%clk 0:02:52.9]} 21... Rfe8 {[%clk 0:02:04.8]} 22. b4 {[%clk
0:02:34.1]} 22... axb4 {[%clk 0:01:58]} 23. axb4 {[%clk 0:02:36]} 23... Bf8
{[%clk 0:01:57.6]} 24. Bf6 {[%clk 0:02:33.6]} 24... Ra8 {[%clk 0:01:57]} 25. h4
{[%clk 0:02:28.9]} 25... Bg7 {[%clk 0:01:52.7]} 26. e5 {[%clk 0:02:23.2]} 26...
Bxf3 {[%clk 0:01:49.9]} 27. Rxf3 {[%clk 0:02:23.8]} 27... h5 {[%clk 0:01:49.2]}
28. Qg5 {[%clk 0:02:23.4]} 28... Qd5 {[%clk 0:01:10.2]} 29. Rg3 {[%clk
0:02:11.1]} 29... Ra2 {[%clk 0:01:01.5]} 30. Kh2 {[%clk 0:02:06]} 30... Rea8
{[%clk 0:00:52.9]} 31. Bxg7 {[%clk 0:02:05.9]} 31... Kxg7 {[%clk 0:00:53.1]} 32.
Qf6+ {[%clk 0:02:06.3]} 32... Kg8 {[%clk 0:00:44.1]} 33. f5 {[%clk 0:02:07]}
33... exf5 {[%clk 0:00:23.5]} 34. e6 {[%clk 0:02:06.9]} 34... Rf8 {[%clk
0:00:07.1]} 35. exf7+ {[%clk 0:02:01.3]} 35... Qxf7 {[%clk 0:00:05.8]} 36. Rxg6+
{[%clk 0:01:59.6]} 1-0

[Event "*** Titled Tuesday Blitz"]
[Site "Chess.com"]
[Date "2019.05.07"]
[Round "2"]
[White "j_coca"]
[Black "WorldChampionBulletChess"]
[Result "1-0"]
[WhiteElo "2224"]
[BlackElo "2073"]
[TimeControl "180+2"]
[EndTime "13:22:32 PDT"]
[Termination "j_coca won by resignation"]

1. f4 {[%clk 0:03:01.9]} 1... d5 {[%clk 0:03:00.1]} 2. Nf3 {[%clk 0:02:54.5]}
2... c5 {[%clk 0:03:00.6]} 3. e3 {[%clk 0:02:55.3]} 3... Nc6 {[%clk 0:02:59]} 4.
d4 {[%clk 0:02:56.1]} 4... cxd4 {[%clk 0:02:55.3]} 5. exd4 {[%clk 0:02:56.7]}
5... Nf6 {[%clk 0:02:57.2]} 6. c3 {[%clk 0:02:57.6]} 6... Bf5 {[%clk 0:02:57.7]}
7. Bd3 {[%clk 0:02:58.3]} 7... Be4 {[%clk 0:02:58.2]} 8. O-O {[%clk 0:02:58.5]}
8... e6 {[%clk 0:02:58.5]} 9. Qe2 {[%clk 0:02:58.4]} 9... Bd6 {[%clk 0:02:58.7]}
10. Ne5 {[%clk 0:02:58.6]} 10... O-O {[%clk 0:02:58.8]} 11. Nd2 {[%clk
0:02:58.4]} 11... Bxd3 {[%clk 0:02:50.9]} 12. Qxd3 {[%clk 0:03:00.3]} 12... Nd7
{[%clk 0:02:50.4]} 13. Rf3 {[%clk 0:02:59.3]} 13... f6 {[%clk 0:02:46.1]} 14.
Rh3 {[%clk 0:02:57.2]} 14... fxe5 {[%clk 0:02:41.4]} 15. Qxh7+ {[%clk
0:02:56.3]} 15... Kf7 {[%clk 0:02:42]} 16. fxe5 {[%clk 0:02:54.9]} 16... Bxe5
{[%clk 0:02:41.8]} 17. dxe5 {[%clk 0:02:55.4]} 17... Ndxe5 {[%clk 0:02:42]} 18.
Nf3 {[%clk 0:02:55.2]} 18... Qb6+ {[%clk 0:02:34.5]} 19. Kh1 {[%clk 0:02:53.7]}
19... Rh8 {[%clk 0:02:22.7]} 20. Ng5+ {[%clk 0:02:42.2]} 20... Kf6 {[%clk
0:02:12.8]} 21. Qc2 {[%clk 0:02:23.6]} 21... Rxh3 {[%clk 0:01:40.3]} 22. Nxh3
{[%clk 0:02:25.5]} 22... Ke7 {[%clk 0:01:28.1]} 23. Bf4 {[%clk 0:02:19]} 23...
Rf8 {[%clk 0:01:18.3]} 24. Re1 {[%clk 0:02:11.8]} 24... Ng4 {[%clk 0:01:10.6]}
25. Qg6 {[%clk 0:02:07.8]} 25... Nf6 {[%clk 0:01:04.3]} 26. Qxg7+ {[%clk
0:01:46.8]} 26... Rf7 {[%clk 0:01:03.9]} 27. Qg6 {[%clk 0:01:40.8]} 27... Nd8
{[%clk 0:00:32.7]} 28. Ng5 {[%clk 0:01:34.5]} 28... Qf2 {[%clk 0:00:33.3]} 29.
Bg3 {[%clk 0:01:31.1]} 29... Qd2 {[%clk 0:00:11.6]} 30. Nxf7 {[%clk 0:01:29.8]}
30... Nxf7 {[%clk 0:00:13.4]} 31. Bh4 {[%clk 0:01:27.9]} 1-0

[Event "*** Titled Tuesday Blitz"]
[Site "Chess.com"]
[Date "2019.05.07"]
[Round "2"]
[White "Sashadav97"]
[Black "BlueWizzard"]
[Result "0-1"]
[WhiteElo "2555"]
[BlackElo "2771"]
[TimeControl "180+2"]
[EndTime "13:22:33 PDT"]
[Termination "BlueWizzard won by resignation"]

1. d4 {[%clk 0:03:01.9]} 1... a6 {[%clk 0:03:01.9]} 2. e4 {[%clk 0:03:02.1]}
2... g6 {[%clk 0:03:02.6]} 3. c4 {[%clk 0:02:57.7]} 3... Bg7 {[%clk 0:03:04]} 4.
Nc3 {[%clk 0:02:57.3]} 4... Nc6 {[%clk 0:03:04.8]} 5. Be3 {[%clk 0:02:52.4]}
5... e5 {[%clk 0:03:03]} 6. d5 {[%clk 0:02:53.6]} 6... Nd4 {[%clk 0:03:03.7]} 7.
Nf3 {[%clk 0:02:52.2]} 7... c5 {[%clk 0:03:03.5]} 8. dxc6 {[%clk 0:02:52.9]}
8... dxc6 {[%clk 0:03:04.5]} 9. h3 {[%clk 0:02:49.2]} 9... Ne7 {[%clk
0:02:50.4]} 10. Be2 {[%clk 0:02:48.8]} 10... O-O {[%clk 0:02:50.3]} 11. O-O
{[%clk 0:02:49.8]} 11... Be6 {[%clk 0:02:41.2]} 12. a3 {[%clk 0:02:26.8]} 12...
a5 {[%clk 0:02:39.2]} 13. c5 {[%clk 0:02:24.5]} 13... Bb3 {[%clk 0:02:36.5]} 14.
Qc1 {[%clk 0:02:00.4]} 14... f5 {[%clk 0:02:20.8]} 15. Nd2 {[%clk 0:02:00]}
15... Be6 {[%clk 0:02:16.9]} 16. Bc4 {[%clk 0:01:56.5]} 16... Qd7 {[%clk
0:02:05.7]} 17. Bxd4 {[%clk 0:01:00.1]} 17... exd4 {[%clk 0:02:04.5]} 18. Ne2
{[%clk 0:01:01.5]} 18... Kh8 {[%clk 0:01:34.4]} 19. Nf4 {[%clk 0:00:40.4]} 19...
Bxc4 {[%clk 0:01:35]} 20. Qxc4 {[%clk 0:00:42]} 20... Bh6 {[%clk 0:01:35.4]} 21.
g3 {[%clk 0:00:28.2]} 21... Bxf4 {[%clk 0:01:27.1]} 22. gxf4 {[%clk 0:00:28.9]}
22... fxe4 {[%clk 0:01:28.7]} 23. Nxe4 {[%clk 0:00:28.6]} 23... Rxf4 {[%clk
0:01:28.6]} 24. Ng3 {[%clk 0:00:23.3]} 24... Qxh3 {[%clk 0:01:24.4]} 25. Rae1
{[%clk 0:00:10.3]} 25... Rh4 {[%clk 0:01:02.1]} 0-1

[Event "*** Titled Tuesday Blitz"]
[Site "Chess.com"]
[Date "2019.05.07"]
[Round "2"]
[White "NeverEverForever1990"]
[Black "Jbd735"]
[Result "1/2-1/2"]
[WhiteElo "2433"]
[BlackElo "2463"]
[TimeControl "180+2"]
[EndTime "13:22:36 PDT"]
[Termination "Game drawn by repetition"]

1. d4 {[%clk 0:03:01.9]} 1... d5 {[%clk 0:03:00.8]} 2. Nf3 {[%clk 0:02:59.8]}
2... Nf6 {[%clk 0:03:01.3]} 3. Bf4 {[%clk 0:03:01]} 3... c5 {[%clk 0:03:01.5]}
4. e3 {[%clk 0:03:01.8]} 4... Nc6 {[%clk 0:03:02.1]} 5. Nbd2 {[%clk 0:02:58.7]}
5... e6 {[%clk 0:03:02.7]} 6. c3 {[%clk 0:02:57.2]} 6... Bd6 {[%clk 0:02:55.5]}
7. Bg3 {[%clk 0:02:58.1]} 7... O-O {[%clk 0:02:53.8]} 8. Bb5 {[%clk 0:02:59.3]}
8... cxd4 {[%clk 0:02:52.1]} 9. exd4 {[%clk 0:02:58.2]} 9... Bxg3 {[%clk
0:02:34]} 10. hxg3 {[%clk 0:03:00.1]} 10... Qb6 {[%clk 0:02:34.6]} 11. a4 {[%clk
0:02:57.6]} 11... a6 {[%clk 0:02:34.6]} 12. Bxc6 {[%clk 0:02:53.8]} 12... bxc6
{[%clk 0:02:31.6]} 13. Qc2 {[%clk 0:02:52.3]} 13... c5 {[%clk 0:02:26.7]} 14.
Ne5 {[%clk 0:02:20.6]} 14... cxd4 {[%clk 0:02:23.3]} 15. Ng4 {[%clk 0:02:21.4]}
15... Ne4 {[%clk 0:02:02.4]} 16. Nxe4 {[%clk 0:02:13]} 16... dxe4 {[%clk
0:02:01.7]} 17. Qxe4 {[%clk 0:02:10.4]} 17... f5 {[%clk 0:01:53.1]} 18. Qxa8
{[%clk 0:01:43]} 18... Bb7 {[%clk 0:01:37.3]} 19. Qxf8+ {[%clk 0:01:42.9]} 19...
Kxf8 {[%clk 0:01:39.2]} 20. Ne5 {[%clk 0:01:44.8]} 20... Qxb2 {[%clk 0:00:59.7]}
21. O-O {[%clk 0:01:45]} 21... dxc3 {[%clk 0:00:52.9]} 22. Rab1 {[%clk
0:01:43.7]} 22... Be4 {[%clk 0:00:53.3]} 23. Rxb2 {[%clk 0:01:37.4]} 23... cxb2
{[%clk 0:00:55.2]} 24. Nd7+ {[%clk 0:01:33.8]} 24... Ke7 {[%clk 0:00:54.6]} 25.
Nc5 {[%clk 0:01:35.7]} 25... b1=Q {[%clk 0:00:48.8]} 26. Rxb1 {[%clk 0:01:37.1]}
26... Bxb1 {[%clk 0:00:50.6]} 27. Nxa6 {[%clk 0:01:39]} 27... Kd6 {[%clk
0:00:49.8]} 28. f4 {[%clk 0:01:39.5]} 28... Kc6 {[%clk 0:00:40.1]} 29. Kf2
{[%clk 0:01:35.9]} 29... Kb6 {[%clk 0:00:39.8]} 30. Nb8 {[%clk 0:01:32.9]} 30...
Kc7 {[%clk 0:00:34.8]} 31. Na6+ {[%clk 0:01:33.9]} 31... Kb6 {[%clk 0:00:34.9]}
32. Nb4 {[%clk 0:01:35]} 32... Kc5 {[%clk 0:00:35.3]} 33. Na6+ {[%clk
0:01:33.9]} 33... Kb6 {[%clk 0:00:36.1]} 34. Nb8 {[%clk 0:01:32]} 34... Kc7
{[%clk 0:00:35.8]} 35. Na6+ {[%clk 0:01:32.7]} 35... Kb6 {[%clk 0:00:36.7]} 36.
Nb4 {[%clk 0:01:34.2]} 36... Kc5 {[%clk 0:00:30.3]} 37. Na6+ {[%clk 0:01:34.3]}
37... Kb6 {[%clk 0:00:31.1]} 1/2-1/2